bitfinex-derivatives/quotes_BTCF0:USTF0_20250921
["timestamp","ask_amount","ask_price","bid_price","bid_amount"]
[1758447877125,0.21731119,115600.0,115590.0,1.40875882]
[1758447877327,0.43074001,115600.0,115590.0,1.40875882]
[1758447878324,0.43074001,115600.0,115590.0,1.19533]
[1758447878520,0.43074001,115600.0,115590.0,1.40875882]
[1758447879124,0.21731119,115600.0,115590.0,1.19533]
[1758447879319,0.43074001,115600.0,115590.0,1.40875882]
[1758447881823,0.21731119,115600.0,115590.0,1.40875882]
[1758447882014,0.43074001,115600.0,115590.0,1.40875882]
[1758447882220,0.43074001,115600.0,115590.0,1.19533]
[1758447882526,0.43074001,115600.0,115590.0,1.40875882]
[1758447884526,0.45448656,115600.0,115590.0,1.40875882]
[1758447884926,0.43074001,115600.0,115590.0,1.40875882]
[1758447885517,0.43074001,115600.0,115590.0,1.19509]
[1758447885716,0.66792109,115600.0,115590.0,0.40513]
[1758447885921,0.66792109,115600.0,115590.0,0.04433]
[1758447889829,0.6678185,115600.0,115590.0,0.04433]
[1758447890829,0.6678185,115600.0,115590.0,0.009]
[1758447891020,1.4576585,115600.0,115590.0,0.009]
[1758447894634,1.43400883,115600.0,115590.0,0.009]
[1758447900534,1.79464883,115600.0,115590.0,0.009]
[1758447900932,2.04464883,115600.0,115590.0,0.009]
[1758447902539,2.04464883,115600.0,115590.0,1e-07]
[1758447903433,1.46839765,115600.0,115590.0,1e-07]
[1758447903639,2.04456883,115600.0,115590.0,1e-07]
[1758447906428,1.25496883,115600.0,115590.0,1e-07]
[1758447906631,2.04456883,115600.0,115590.0,1e-07]
[1758447906940,1.25496883,115600.0,115590.0,1e-07]
[1758447907142,2.04452883,115600.0,115590.0,1e-07]
[1758447908345,1.25496883,115600.0,115590.0,1e-07]
[1758447908534,1.61767119,115600.0,115590.0,1e-07]
[1758447908732,2.04452883,115600.0,115590.0,1e-07]
[1758447909744,2.04448883,115600.0,115590.0,1e-07]
[1758447910244,1.79448883,115600.0,115590.0,1e-07]
[1758447910840,2.25791765,115600.0,115590.0,1e-07]
[1758447911036,1.46839765,115600.0,115590.0,1e-07]
[1758447911436,2.25791765,115600.0,115590.0,1e-07]
[1758447911943,2.25791765,115600.0,115580.0,6.01e-05]
[1758447911944,0.53021804,115590.0,115580.0,6.01e-05]
[1758447912240,0.89101804,115590.0,115580.0,6.01e-05]
[1758447914846,0.89301804,115590.0,115580.0,0.0080601]
[1758447915446,0.4661604,115590.0,115580.0,0.0080601]
[1758447915648,0.89301804,115590.0,115580.0,0.0080601]
[1758447915847,1.68245804,115590.0,115580.0,0.0080601]
[1758447917040,0.89301804,115590.0,115580.0,0.0080601]
[1758447917351,1.68245804,115590.0,115580.0,0.0080601]
[1758447919739,1.68264446,115590.0,115580.0,0.0080601]
[1758447931250,0.0864678,115580.0,115570.0,0.01309]
[1758447931449,0.1033753,115570.0,115560.0,0.03542]
[1758447931752,1.10609733,115570.0,115560.0,0.11324465]
[1758447932957,1.10609733,115570.0,115560.0,0.03542]
[1758447933255,1.46989733,115570.0,115560.0,0.02909]
[1758447933758,0.1033823,115560.0,115550.0,0.11356465]
[1758447933958,0.31690433,115560.0,115550.0,0.11356465]
[1758447934748,0.31690433,115560.0,115550.0,0.03574]
[1758447935450,1.10606433,115560.0,115550.0,0.03574]
[1758447936245,0.31690433,115560.0,115550.0,0.03574]
[1758447936654,1.10606433,115560.0,115550.0,0.03574]
[1758447936856,1.11106433,115560.0,115550.0,0.03874]
[1758447937056,1.17878413,115560.0,115550.0,0.03874]
[1758447949469,0.9652621,115560.0,115550.0,0.03874]
[1758447949869,1.17878413,115560.0,115550.0,0.03874]
[1758447950770,1.17866413,115560.0,115550.0,0.03874]
[1758447950970,0.9651421,115560.0,115550.0,0.03874]
[1758447951271,0.9651421,115560.0,115550.0,0.39954]
[1758447953674,0.1761021,115560.0,115550.0,0.39954]
[1758447953974,0.9651021,115560.0,115550.0,0.39954]
[1758447954875,1.17862413,115560.0,115550.0,0.39954]
[1758447956378,1.17858413,115560.0,115550.0,0.39954]
[1758447958376,0.9650621,115560.0,115550.0,0.47736465]
[1758447958566,1.17858413,115560.0,115550.0,0.47736465]
[1758447959571,0.1761021,115560.0,115550.0,0.47736465]
[1758447959772,0.9650621,115560.0,115550.0,0.47736465]
[1758447959974,0.38962413,115560.0,115550.0,0.47736465]
[1758447960174,1.17854413,115560.0,115550.0,0.47736465]
[1758447961271,0.1761021,115560.0,115550.0,0.47736465]
[1758447961475,1.17854413,115560.0,115550.0,0.39954]
[1758447961670,0.38962413,115560.0,115550.0,0.39954]
[1758447961870,1.17854413,115560.0,115550.0,0.39954]
[1758447962574,0.9650221,115560.0,115550.0,0.50840314]
[1758447962873,1.17854413,115560.0,115550.0,0.50840314]
[1758447965276,1.17850413,115560.0,115550.0,0.50840314]
[1758447969878,1.17842413,115560.0,115550.0,0.50840314]
[1758447970379,0.9649021,115560.0,115550.0,0.50840314]
[1758447973981,1.17842413,115560.0,115550.0,0.50840314]
[1758447974282,0.9649021,115560.0,115550.0,0.50840314]
[1758447974482,1.17842413,115560.0,115550.0,0.50840314]
[1758447974681,0.9649021,115560.0,115550.0,0.50840314]
[1758447974882,1.17842413,115560.0,115550.0,0.50840314]
[1758447976577,1.17842413,115560.0,115550.0,0.58628819]
[1758447976782,1.17842413,115560.0,115550.0,0.47742505]
[1758447979884,1.17846747,115560.0,115550.0,0.69099042]
[1758447980284,0.9649021,115560.0,115550.0,0.69099042]
[1758447980489,1.17846747,115560.0,115550.0,0.69099042]
[1758447980783,0.38966747,115560.0,115550.0,0.69099042]
[1758447980985,1.17834747,115560.0,115550.0,0.69099042]
[1758447982483,0.9647821,115560.0,115550.0,0.69099042]
[1758447982685,1.17834747,115560.0,115550.0,0.69099042]
[1758447984185,0.9647821,115560.0,115550.0,0.69099042]
[1758447984381,1.17834747,115560.0,115550.0,0.69099042]
[1758447984787,1.17834747,115560.0,115550.0,0.61310537]
[1758447984983,1.17834747,115560.0,115550.0,0.69099042]
[1758447985887,1.17834747,115560.0,115550.0,0.61310537]
[1758447993101,1.17834747,115560.0,115550.0,0.39954]
[1758447993297,1.17834747,115560.0,115550.0,0.61310537]
[1758447994990,0.9647821,115560.0,115550.0,0.72196851]
[1758447995490,1.17834747,115560.0,115550.0,0.72196851]
[1758447998903,1.17834747,115560.0,115550.0,0.61310537]
[1758448001306,0.9647821,115560.0,115550.0,0.61310537]
[1758448001506,1.17834747,115560.0,115550.0,0.61310537]
[1758448001694,0.9647821,115560.0,115550.0,0.61310537]
[1758448002007,1.17834747,115560.0,115550.0,0.61310537]
[1758448003809,1.17834747,115560.0,115550.0,0.39954]
[1758448004010,1.17834747,115560.0,115550.0,0.61310537]
[1758448006409,1.17834747,115560.0,115550.0,0.39954]
[1758448006610,0.9647821,115560.0,115550.0,0.61310537]
[1758448006913,1.17834747,115560.0,115550.0,0.61310537]
[1758448007706,1.17834747,115560.0,115550.0,0.72196851]
[1758448011815,0.9647821,115560.0,115550.0,0.72196851]
[1758448012018,1.17794747,115560.0,115550.0,0.72196851]
[1758448012217,1.17794747,115560.0,115550.0,0.61310537]
[1758448012414,0.38966747,115560.0,115550.0,0.61310537]
[1758448013217,1.17790747,115560.0,115550.0,0.61310537]
[1758448018522,1.39147284,115560.0,115550.0,0.39954]
[1758448018724,1.39147284,115560.0,115550.0,0.61310537]
[1758448019222,1.17790747,115560.0,115550.0,0.61310537]
[1758448021222,0.1761021,115560.0,115550.0,0.61310537]
[1758448021425,0.0727198,115560.0,115550.0,1.16316044]
[1758448021723,0.159202,115560.0,115550.0,1.31810476]
[1758448022025,0.159202,115560.0,115550.0,2.10622476]
[1758448023324,0.159202,115560.0,115550.0,1.95128044]
[1758448024825,0.159202,115560.0,115550.0,2.06016631]
[1758448029821,0.005,115560.0,115550.0,2.06016631]
[1758448030219,0.65556544,115590.0,115580.0,0.03619]
[1758448030420,0.67576114,115590.0,115580.0,0.24975537]
[1758448031430,0.76222744,115590.0,115580.0,0.24975537]
[1758448031629,0.77322744,115590.0,115580.0,0.25275537]
[1758448032426,0.77322744,115590.0,115580.0,0.61355537]
[1758448032626,0.77822744,115590.0,115580.0,0.61455537]
[1758448033231,0.77322744,115590.0,115580.0,0.61355537]
[1758448033434,0.77522744,115590.0,115580.0,0.61355537]
[1758448034431,0.76622744,115590.0,115580.0,0.61655537]
[1758448039838,0.55266207,115590.0,115580.0,0.40299]
[1758448042840,0.76611945,115590.0,115580.0,0.04219]
[1758448043041,0.76611945,115590.0,115580.0,0.006]
[1758448043641,0.76611945,115590.0,115580.0,0.02899]
[1758448048951,0.76611945,115590.0,115580.0,0.04217]
[1758448052755,0.55266207,115590.0,115580.0,0.04217]
[1758448052957,1.12885938,115590.0,115580.0,0.04217]
[1758448056553,0.915402,115590.0,115580.0,0.61642738]
[1758448057260,0.915402,115590.0,115580.0,0.40297]
[1758448062170,0.127562,115590.0,115580.0,0.40297]
[1758448063067,0.127562,115590.0,115580.0,0.61642738]
[1758448067774,0.127562,115590.0,115580.0,0.40297]
[1758448078479,0.127562,115590.0,115580.0,0.61642738]
[1758448082875,0.110662,115590.0,115580.0,0.61642738]
[1758448084091,0.127562,115590.0,115580.0,0.61642738]
[1758448084486,0.110662,115590.0,115580.0,0.70289458]
[1758448084783,0.110662,115590.0,115580.0,1.65402738]
[1758448084981,0.110662,115590.0,115580.0,1.74049108]
[1758448085180,0.110662,115590.0,115580.0,1.84937695]
[1758448088682,0.110662,115590.0,115580.0,2.06283433]
[1758448088890,0.108812,115590.0,115580.0,1.84937695]
[1758448089390,0.108692,115590.0,115580.0,1.84937695]
[1758448089993,0.106602,115590.0,115580.0,1.84937695]
[1758448090896,0.106012,115590.0,115580.0,1.84937695]
[1758448091096,0.101022,115590.0,115580.0,1.84937695]
[1758448091598,0.100832,115590.0,115580.0,1.63591957]
[1758448091802,0.100832,115590.0,115580.0,1.84937695]
[1758448092297,0.098652,115590.0,115580.0,1.84937695]
[1758448093002,0.098252,115590.0,115580.0,1.84937695]
[1758448093399,0.94256769,115620.0,115610.0,0.03445]
[1758448093702,0.94256769,115620.0,115610.0,0.39525]
[1758448093895,1.02899779,115620.0,115610.0,0.39525]
[1758448094101,0.81554041,115620.0,115610.0,0.39525]
[1758448094302,1.02899779,115620.0,115610.0,0.39525]
[1758448094800,1.04099779,115620.0,115610.0,0.39825]
[1758448094997,0.85793709,115620.0,115610.0,0.61170738]
[1758448095407,0.86393709,115620.0,115610.0,0.61270738]
[1758448096200,0.86193709,115620.0,115610.0,0.61170738]
[1758448097002,0.93108082,115620.0,115610.0,0.61170738]
[1758448097504,0.92608082,115620.0,115610.0,0.61070738]
[1758448098302,0.92608082,115620.0,115610.0,0.39725]
[1758448099706,0.92608082,115620.0,115610.0,0.61070738]
[1758448100005,0.92719514,115620.0,115610.0,0.61070738]
[1758448101008,0.92733671,115620.0,115610.0,0.39725]
[1758448101204,0.92733671,115620.0,115610.0,0.61070738]
[1758448101708,0.92733671,115620.0,115610.0,0.61058725]
[1758448101905,1.14067396,115620.0,115610.0,0.61058725]
[1758448102105,0.92733671,115620.0,115610.0,0.61058725]
[1758448102304,1.14067396,115620.0,115610.0,0.61058725]
[1758448102812,1.14067396,115620.0,115610.0,0.39725]
[1758448103106,1.14067396,115620.0,115610.0,0.61058725]
[1758448103309,0.92733671,115620.0,115610.0,0.61058725]
[1758448103509,1.14067396,115620.0,115610.0,0.61058725]
[1758448105002,0.92733671,115620.0,115610.0,0.61058725]
[1758448105202,1.14067396,115620.0,115610.0,0.61058725]
[1758448105702,0.92733671,115620.0,115610.0,0.61058725]
[1758448106505,0.23539703,115620.0,115610.0,0.61058725]
[1758448106810,0.23564991,115620.0,115610.0,0.61058725]
[1758448107006,0.23564991,115620.0,115610.0,0.39725]
[1758448107208,0.23564991,115620.0,115610.0,0.61058725]
[1758448107410,0.23564991,115620.0,115610.0,1.39778725]
[1758448107712,0.44898716,115620.0,115610.0,1.39778725]
[1758448108007,0.44924002,115620.0,115610.0,1.39778725]
[1758448108408,0.23590277,115620.0,115610.0,1.39778725]
[1758448108608,0.44924002,115620.0,115610.0,1.39778725]
[1758448108809,0.44949288,115620.0,115610.0,1.39778725]
[1758448109511,0.44949288,115620.0,115610.0,0.61058725]
[1758448109711,0.44949288,115620.0,115610.0,1.39774725]
[1758448110009,0.23640849,115620.0,115610.0,0.39725]
[1758448110207,0.23640849,115620.0,115610.0,1.18693]
[1758448110405,0.44974574,115620.0,115610.0,0.39725]
[1758448110611,0.44974574,115620.0,115610.0,1.40026725]
[1758448110910,0.44992159,115620.0,115610.0,1.40026725]
[1758448111709,0.44992159,115620.0,115610.0,1.40154725]
[1758448112511,0.44992159,115620.0,115610.0,0.61058725]
[1758448112814,0.66325884,115620.0,115610.0,0.39725]
[1758448113913,0.23658434,115620.0,115610.0,0.39725]
[1758448114114,0.66325884,115620.0,115610.0,0.39725]
[1758448116114,0.23658434,115620.0,115610.0,0.61058725]
[1758448116614,0.23675906,115620.0,115610.0,0.61058725]
[1758448117016,0.45009631,115620.0,115610.0,0.61058725]
[1758448117407,0.22975906,115620.0,115610.0,0.39525]
[1758448117614,0.23375906,115620.0,115610.0,0.61058725]
[1758448117815,0.23393378,115620.0,115610.0,0.61058725]
[1758448118017,0.23393378,115620.0,115610.0,0.60858725]
[1758448118212,0.23393378,115620.0,115610.0,0.61158725]
[1758448118213,0.23193378,115620.0,115610.0,0.61158725]
[1758448118520,0.23093378,115620.0,115610.0,0.61158725]
[1758448118815,0.2311085,115620.0,115610.0,0.61158725]
[1758448119411,0.2291085,115620.0,115610.0,0.61158725]
[1758448119611,0.22928322,115620.0,115610.0,0.61158725]
[1758448121412,0.22614114,115620.0,115610.0,0.61158725]
[1758448121618,0.22966755,115620.0,115610.0,0.61158725]
[1758448122521,0.22977165,115620.0,115610.0,0.61158725]
[1758448122817,0.22977165,115620.0,115610.0,0.39825]
[1758448123019,0.22977165,115620.0,115610.0,0.61158725]
[1758448123213,0.22977165,115620.0,115610.0,0.39825]
[1758448123412,0.22977165,115620.0,115610.0,0.61158725]
[1758448127522,0.20950102,115620.0,115610.0,1.6150045]
[1758448128123,0.20988504,115620.0,115610.0,1.40166725]
[1758448128532,0.20587051,115620.0,115610.0,1.40166725]
[1758448128820,0.21026906,115620.0,115610.0,1.40166725]
[1758448129705,0.21026906,115620.0,115610.0,0.61158725]
[1758448129910,0.21026906,115620.0,115610.0,1.40210725]
[1758448130109,0.21065308,115620.0,115610.0,1.40210725]
[1758448130820,0.21068833,115620.0,115610.0,1.40206725]
[1758448136222,0.21109357,115620.0,115610.0,1.40206725]
[1758448137114,0.20587051,115620.0,115610.0,1.40206725]
[1758448137321,0.21149881,115620.0,115610.0,1.40206725]
[1758448138223,0.21187564,115620.0,115610.0,1.40206725]
[1758448143232,0.21187564,115620.0,115610.0,1.47989158]
[1758448143421,0.21187564,115620.0,115610.0,1.40206725]
[1758448143932,0.21187564,115620.0,115610.0,1.26655433]
[1758448144133,0.21187564,115620.0,115610.0,1.47989158]
[1758448144336,0.42521289,115620.0,115610.0,1.26655433]
[1758448144631,0.42521289,115620.0,115610.0,1.47989158]
[1758448145028,0.42521289,115620.0,115610.0,1.40206725]
[1758448145224,0.42521289,115620.0,115610.0,0.39825]
[1758448145428,0.63855014,115620.0,115610.0,1.18781]
[1758448145936,0.21187564,115620.0,115610.0,1.18781]
[1758448146234,0.63855014,115620.0,115610.0,1.18781]
[1758448146435,0.63855014,115620.0,115610.0,0.39825]
[1758448154938,0.64843014,115620.0,115610.0,0.0143276]
[1758448155844,1.43743014,115620.0,115610.0,0.0143276]
[1758448159343,0.64843014,115620.0,115610.0,0.0143276]
[1758448159544,1.43743014,115620.0,115610.0,0.0143276]
[1758448159739,0.64843014,115620.0,115610.0,0.3751276]
[1758448159938,1.42739014,115620.0,115610.0,0.3888476]
[1758448161747,1.21409313,115620.0,115610.0,0.3888476]
[1758448163951,0.21187564,115620.0,115610.0,0.61988339]
[1758448164445,0.19497564,115620.0,115610.0,0.61988339]
[1758448164649,0.19497564,115620.0,115610.0,1.65856339]
[1758448170551,0.19497564,115620.0,115610.0,0.6565059]
[1758448170856,0.21754564,115620.0,115610.0,1.65824339]
[1758448179359,0.21754564,115620.0,115610.0,1.40824339]
[1758448189560,0.19497564,115620.0,115610.0,1.40824339]
[1758448193366,0.19497564,115620.0,115610.0,1.76904339]
[1758448194654,0.19497564,115620.0,115610.0,1.87792926]
[1758448196364,0.19497564,115620.0,115610.0,1.76904339]
[1758448196664,0.19497564,115620.0,115610.0,1.87792926]
[1758448198369,0.19497564,115620.0,115610.0,2.06885558]
[1758448198758,0.04603583,115620.0,115610.0,2.31885558]
[1758448199257,0.00014,115630.0,115610.0,2.31885558]
[1758448199258,0.0865645,115630.0,115620.0,0.0992272]
[1758448199465,0.0864645,115630.0,115620.0,1.01693194]
[1758448199664,0.0864645,115630.0,115620.0,1.24582224]
[1758448199862,0.0864645,115630.0,115620.0,1.24581866]
[1758448200068,4e-05,115630.0,115620.0,1.49581866]
[1758448200265,0.0864597,115630.0,115620.0,1.38691248]
[1758448200467,0.0924597,115630.0,115620.0,1.38891248]
[1758448200663,0.0924597,115630.0,115620.0,1.49781391]
[1758448201367,0.0954597,115630.0,115620.0,1.49781391]
[1758448201668,0.0914597,115630.0,115620.0,1.49781391]
[1758448201965,0.0914597,115630.0,115620.0,1.38891248]
[1758448202160,0.0894597,115630.0,115620.0,1.4977368]
[1758448202369,0.0894597,115630.0,115620.0,1.07098182]
[1758448202562,0.00304,115630.0,115620.0,1.38891248]
[1758448202763,0.0865168,115640.0,115630.0,0.03404]
[1758448202965,0.0864168,115640.0,115630.0,1.4188585]
[1758448203267,0.0849668,115640.0,115630.0,1.4188585]
[1758448203472,0.0840168,115640.0,115630.0,1.4188585]
[1758448203867,0.0860168,115640.0,115630.0,0.41268101]
[1758448204073,0.0860168,115640.0,115630.0,1.4190185]
[1758448204272,0.0860168,115640.0,115630.0,0.6260585]
[1758448204478,0.0910168,115640.0,115630.0,1.53024282]
[1758448205198,0.0910168,115640.0,115630.0,1.31686533]
[1758448205472,0.0910168,115640.0,115630.0,1.53024282]
[1758448208378,0.0910168,115640.0,115630.0,1.31686533]
[1758448208570,0.0910168,115640.0,115630.0,1.4214185]
[1758448209069,0.0910168,115640.0,115630.0,1.72121589]
[1758448209264,0.0910168,115640.0,115630.0,1.5078384]
[1758448209780,0.0865051,115650.0,115640.0,0.1218825]
[1758448210079,0.0864051,115650.0,115640.0,0.90943748]
[1758448210877,0.19704585,115660.0,115650.0,0.01279]
[1758448211073,0.086402,115660.0,115650.0,1.20877769]
[1758448211383,0.086402,115660.0,115650.0,1.63553267]
[1758448211974,0.088402,115660.0,115650.0,1.63553267]
[1758448212177,0.088402,115660.0,115650.0,1.20877769]
[1758448212472,0.088402,115660.0,115650.0,1.63553267]
[1758448213470,0.088402,115660.0,115650.0,1.63653267]
[1758448213471,0.090402,115660.0,115650.0,1.63653267]
[1758448215776,0.090402,115660.0,115650.0,1.42315518]
[1758448216077,0.090402,115660.0,115650.0,0.41473769]
[1758448216281,0.090402,115660.0,115650.0,0.62811518]
[1758448216480,0.090402,115660.0,115650.0,1.42299518]
[1758448216679,0.090402,115660.0,115650.0,0.62811518]
[1758448216877,0.112342,115660.0,115650.0,0.41473769]
[1758448217085,0.090402,115660.0,115650.0,1.20969769]
[1758448217780,0.090402,115660.0,115650.0,1.42307518]
[1758448219080,0.090402,115660.0,115650.0,1.72285787]
[1758448219478,0.090402,115660.0,115650.0,1.63645267]
[1758448219683,0.090402,115660.0,115650.0,1.72285797]
[1758448221881,0.090402,115660.0,115650.0,1.72232379]
[1758448227780,0.004,115660.0,115650.0,2.18543419]
[1758448228485,0.0864876,115680.0,115670.0,0.03592]
[1758448228686,0.0864876,115680.0,115670.0,2.08563182]
[1758448228986,0.0850176,115680.0,115670.0,2.08563182]
[1758448229685,0.0836276,115680.0,115670.0,2.08563182]
[1758448231085,0.0846276,115680.0,115670.0,2.09063182]
[1758448232387,0.15283016,115680.0,115670.0,2.09063182]
[1758448238804,0.0846276,115680.0,115670.0,2.09063182]
[1758448248006,0.0846276,115680.0,115670.0,1.20652142]
[1758448248217,0.0846276,115680.0,115670.0,1.78809102]
[1758448248812,0.1069076,115680.0,115670.0,0.99341102]
[1758448249309,0.1069076,115680.0,115670.0,1.78793102]
[1758448249310,0.320018,115680.0,115670.0,1.78793102]
[1758448249504,0.1069076,115680.0,115670.0,1.78793102]
[1758448250005,0.1069076,115680.0,115670.0,1.78781102]
[1758448250612,0.1069076,115680.0,115670.0,0.99341102]
[1758448250811,0.1069076,115680.0,115670.0,1.78773102]
[1758448253508,0.1069076,115680.0,115670.0,0.99341102]
[1758448253708,0.1069076,115680.0,115670.0,1.78745102]
[1758448256509,0.1069076,115680.0,115670.0,1.78709102]
[1758448260219,0.1069076,115680.0,115670.0,1.57398062]
[1758448260419,0.1069076,115680.0,115670.0,1.78709102]
[1758448262611,0.1069076,115680.0,115670.0,1.57398062]
[1758448262814,0.1069076,115680.0,115670.0,1.78709102]
[1758448263211,0.1069076,115680.0,115670.0,1.86486143]
[1758448263621,0.1069076,115680.0,115670.0,2.07797183]
[1758448265126,0.1069076,115680.0,115670.0,2.00020142]
[1758448265826,0.1069076,115680.0,115670.0,2.08659252]
[1758448266727,0.1069076,115680.0,115670.0,2.19541684]
[1758448267920,0.1069076,115680.0,115670.0,1.68280494]
[1758448268125,0.1069076,115680.0,115670.0,2.10902574]
[1758448268925,0.1069076,115680.0,115670.0,1.68280494]
[1758448269124,0.1069076,115680.0,115670.0,2.10902574]
[1758448269623,0.1069076,115680.0,115670.0,1.68280494]
[1758448269823,0.1069076,115680.0,115670.0,1.89591534]
[1758448270821,0.1069076,115680.0,115670.0,1.78709102]
[1758448271225,0.1069076,115680.0,115670.0,0.99341102]
[1758448271726,0.320018,115680.0,115670.0,1.7678304]
[1758448271928,0.34002048,115680.0,115670.0,1.87665472]
[1758448272117,0.34002048,115680.0,115670.0,1.66354432]
[1758448272316,0.34002048,115680.0,115670.0,1.84561493]
[1758448273927,0.35262048,115680.0,115670.0,0.82685453]
[1758448274123,0.35262048,115680.0,115670.0,1.7544604]
[1758448274328,0.35262048,115680.0,115670.0,1.83223215]
[1758448275928,0.35262048,115680.0,115670.0,1.03995215]
[1758448277228,0.35262048,115680.0,115670.0,0.46604175]
[1758448277427,0.56573088,115680.0,115670.0,0.46604175]
[1758448277621,0.35262048,115680.0,115670.0,0.6013804]
[1758448278929,0.35262048,115680.0,115670.0,0.38827]
[1758448279231,0.34002048,115680.0,115670.0,0.6153104]
[1758448281129,0.34002048,115680.0,115670.0,0.4022]
[1758448281330,0.34002048,115680.0,115670.0,0.6153104]
[1758448281732,0.12691008,115680.0,115670.0,0.61530754]
[1758448282435,0.12691008,115680.0,115670.0,0.4022]
[1758448285336,0.12691008,115680.0,115670.0,0.61530754]
[1758448285841,0.35346762,115680.0,115670.0,0.38827]
[1758448286738,0.14036008,115680.0,115670.0,0.38827]
[1758448287040,0.35346762,115680.0,115670.0,0.38827]
[1758448300144,0.35346762,115680.0,115670.0,0.4022]
[1758448301447,1.13077762,115680.0,115670.0,0.4022]
[1758448303145,0.12691008,115680.0,115670.0,0.61530754]
[1758448303343,0.91743008,115680.0,115670.0,0.61530754]
[1758448303847,0.91743008,115680.0,115670.0,0.4022]
[1758448304246,0.91723008,115680.0,115670.0,0.61530754]
[1758448304848,0.91723008,115680.0,115670.0,0.4022]
[1758448305847,0.12691008,115680.0,115670.0,0.4022]
[1758448306052,0.91715008,115680.0,115670.0,0.4022]
[1758448307149,0.89455008,115680.0,115670.0,0.61530754]
[1758448307662,1.12893762,115680.0,115670.0,0.4022]
[1758448312569,1.12893762,115680.0,115670.0,0.0414]
[1758448312754,1.12893762,115680.0,115670.0,0.4022]
[1758448315364,1.12821762,115680.0,115670.0,0.4022]
[1758448315563,0.91511008,115680.0,115670.0,0.4022]
[1758448317465,0.89383008,115680.0,115670.0,0.4022]
[1758448318673,0.91605008,115680.0,115670.0,0.4022]
[1758448319370,0.10463008,115680.0,115670.0,0.61530754]
[1758448319671,0.89375008,115680.0,115670.0,0.61530754]
[1758448320170,0.91597008,115680.0,115670.0,0.61530754]
[1758448320664,0.12685008,115680.0,115670.0,0.61530754]
[1758448320869,0.91597008,115680.0,115670.0,0.61530754]
[1758448321969,0.10463008,115680.0,115670.0,0.61530754]
[1758448322162,0.0846276,115680.0,115670.0,0.61530754]
[1758448322368,0.0846276,115680.0,115670.0,0.72413186]
[1758448323376,0.0846276,115680.0,115670.0,1.06052306]
[1758448327077,0.0846276,115680.0,115670.0,1.13826086]
[1758448327281,0.0846276,115680.0,115670.0,0.95169874]
[1758448327781,0.0846276,115680.0,115670.0,1.74077874]
[1758448328478,0.0846276,115680.0,115670.0,1.81850107]
[1758448328982,0.0846276,115680.0,115670.0,1.74077874]
[1758448329284,0.0846276,115680.0,115670.0,1.81850099]
[1758448329876,0.0846276,115680.0,115670.0,1.74077874]
[1758448330082,0.0846276,115680.0,115670.0,1.84960306]
[1758448335191,0.0846276,115680.0,115670.0,1.59960306]
[1758448335385,0.0011,115680.0,115670.0,1.81845601]
[1758448336780,0.0011,115680.0,115670.0,2.03156355]
[1758448337184,0.0011,115680.0,115670.0,1.95388628]
[1758448337384,0.0011,115680.0,115670.0,2.0627106]
[1758448338388,0.0011,115680.0,115670.0,2.14036801]
[1758448338589,0.0011,115680.0,115670.0,2.03154369]
[1758448338792,0.13669045,115690.0,115680.0,0.121574]
[1758448338992,0.90569757,115710.0,115700.0,0.03519]
[1758448339194,0.69249003,115710.0,115700.0,0.39599]
[1758448339592,0.109248,115710.0,115700.0,0.62654277]
[1758448340294,0.117248,115710.0,115700.0,0.62854277]
[1758448340492,0.1871394,115710.0,115700.0,0.41543523]
[1758448340798,0.1921394,115710.0,115700.0,0.41543523]
[1758448341211,1.01256125,115710.0,115700.0,0.41543523]
[1758448343800,1.01256125,115710.0,115700.0,0.62843717]
[1758448343801,1.22556319,115710.0,115700.0,0.62843717]
[1758448345795,1.11631519,115710.0,115700.0,0.62843717]
[1758448346100,1.13907519,115710.0,115700.0,0.62843717]
[1758448346797,1.22544319,115710.0,115700.0,0.62843717]
[1758448346997,0.43648319,115710.0,115700.0,0.62843717]
[1758448347202,1.01240125,115710.0,115700.0,0.62843717]
[1758448347500,1.22540319,115710.0,115700.0,0.62843717]
[1758448348202,0.22348125,115710.0,115700.0,0.62843717]
[1758448348395,0.98960125,115710.0,115700.0,0.84143911]
[1758448348600,1.20260319,115710.0,115700.0,0.84143911]
[1758448348897,1.20260319,115710.0,115700.0,0.62843717]
[1758448349101,1.22536319,115710.0,115700.0,0.62843717]
[1758448349803,1.24533862,115710.0,115700.0,0.41543523]
[1758448350005,1.24533862,115710.0,115700.0,0.62843717]
[1758448350699,1.24533862,115710.0,115700.0,0.41543523]
[1758448355606,1.21387677,115710.0,115700.0,0.41543523]
[1758448363516,1.21387677,115710.0,115700.0,0.4930903]
[1758448363717,1.21397677,115710.0,115700.0,0.41543523]
[1758448386739,1.21397677,115710.0,115700.0,0.05463523]
[1758448386935,1.22108677,115710.0,115700.0,0.04086523]
[1758448387139,1.22108677,115710.0,115700.0,0.01944523]
[1758448387535,1.79488871,115710.0,115700.0,0.01944523]
[1758448388641,1.8196038,115710.0,115700.0,0.01944523]
[1758448389135,1.79488871,115710.0,115700.0,0.01944523]
[1758448393043,1.81959444,115710.0,115700.0,0.01944523]
[1758448395545,1.81959444,115710.0,115700.0,0.04212523]
[1758448398346,1.81959444,115710.0,115700.0,0.01944523]
[1758448400045,1.8195867,115710.0,115700.0,3e-08]
[1758448404942,1.79488871,115710.0,115700.0,3e-08]
[1758448405747,1.79503143,115710.0,115700.0,3e-08]
[1758448412459,0.1214802,115700.0,115690.0,3e-08]
[1758448412649,0.3345535,115700.0,115690.0,3e-08]
[1758448412846,0.6953535,115700.0,115690.0,3e-08]
[1758448413661,0.6983535,115700.0,115690.0,3e-08]
[1758448414258,0.7033535,115700.0,115690.0,3e-08]
[1758448414453,0.4902802,115700.0,115690.0,3e-08]
[1758448429572,0.1088676,115690.0,115680.0,0.3976]
[1758448429770,0.9103976,115690.0,115680.0,0.3976]
[1758448430172,1.1234709,115690.0,115680.0,0.3976]
[1758448431068,0.9123976,115690.0,115680.0,0.3986]
[1758448431369,1.1254709,115690.0,115680.0,0.3986]
[1758448431668,1.1274709,115690.0,115680.0,0.3986]
[1758448432772,1.1274709,115690.0,115680.0,0.38483]
[1758448437878,0.1263976,115690.0,115680.0,0.38483]
[1758448438086,0.3395709,115690.0,115680.0,0.39754]
[1758448438379,1.1274109,115690.0,115680.0,0.39754]
[1758448441579,0.9143376,115690.0,115680.0,0.39754]
[1758448441773,1.1274109,115690.0,115680.0,0.39754]
[1758448442887,1.1274109,115690.0,115680.0,0.03674]
[1758448443184,1.1274109,115690.0,115680.0,0.39754]
[1758448443979,1.1274109,115690.0,115680.0,0.03674]
[1758448444185,1.1274109,115690.0,115680.0,0.39754]
[1758448455996,1.1274109,115690.0,115680.0,0.02403]
[1758448463897,0.3336584,115680.0,115670.0,0.49180432]
[1758448464100,0.3337584,115680.0,115670.0,0.49160432]
[1758448464298,0.3337584,115680.0,115670.0,0.50929519]
[1758448464993,0.3347584,115680.0,115670.0,0.51229519]
[1758448465498,1.1222384,115680.0,115670.0,0.51229519]